bitfinex/quotes_BTCUSD_20241203
["timestamp","ask_amount","ask_price","bid_price","bid_amount"]
[1733240885960,0.85881748,95779.0,95778.0,3.2e-07]
[1733240886170,0.86481748,95779.0,95778.0,3.2e-07]
[1733240886383,0.86481748,95779.0,95711.0,0.00184877]
[1733240886384,0.06850489,95725.0,95711.0,0.0477]
[1733240886853,0.21850489,95725.0,95711.0,0.0477]
[1733240887297,0.21850489,95725.0,95703.0,6e-05]
[1733240888009,0.27742489,95730.0,95724.0,0.12519756]
[1733240888218,0.208929,95726.0,95725.0,0.10471259]
[1733240888859,0.208929,95726.0,95725.0,0.12771259]
[1733240889281,0.208929,95726.0,95724.0,0.02048497]
[1733240889282,0.06850489,95725.0,95724.0,0.02048497]
[1733240889501,0.06850489,95725.0,95724.0,0.04348497]
[1733240890157,0.21850489,95725.0,95724.0,0.04348497]
[1733240890408,0.21850489,95725.0,95724.0,0.02048497]
[1733240893672,0.21950489,95725.0,95724.0,0.02048497]
[1733240894624,0.22050489,95725.0,95724.0,0.02048497]
[1733240896987,0.22050489,95725.0,95724.0,0.14819756]
[1733240897219,0.002,95725.0,95724.0,0.14819756]
[1733240897936,0.002,95725.0,95724.0,0.20239756]
[1733240898175,0.210931,95725.0,95724.0,0.21014008]
[1733240898461,0.27943589,95725.0,95724.0,0.02048497]
[1733240898697,0.209931,95725.0,95724.0,0.12519756]
[1733240898941,0.208931,95725.0,95724.0,0.12519756]
[1733240899178,0.210931,95725.0,95724.0,0.12519756]
[1733240899422,0.27943589,95725.0,95724.0,0.02048497]
[1733240899904,0.27843589,95725.0,95724.0,0.02134887]
[1733240900619,0.27743589,95725.0,95724.0,0.02134887]
[1733240901552,0.27743589,95725.0,95724.0,0.02104887]
[1733240902029,0.27843589,95725.0,95724.0,0.02104887]
[1733240902773,0.209931,95725.0,95724.0,0.12576146]
[1733240903014,0.209931,95725.0,95724.0,0.13352075]
[1733240903279,0.209931,95725.0,95724.0,0.13352201]
[1733240904223,0.209931,95725.0,95724.0,0.13352632]
[1733240906327,0.209931,95725.0,95724.0,0.13353761]
[1733240907562,0.001,95725.0,95724.0,0.13353761]
[1733240907788,0.001,95725.0,95724.0,0.28263761]
[1733240908709,0.208903,95738.0,95725.0,0.231931]
[1733240908924,0.208903,95738.0,95727.0,0.231927]
[1733240909160,0.208903,95738.0,95729.0,0.023]
[1733240909375,0.208913,95734.0,95730.0,0.11248874]
[1733240909594,0.06850489,95747.0,95731.0,0.03079657]
[1733240909835,0.06850489,95744.0,95732.0,0.11250916]
[1733240910071,0.20891,95735.0,95733.0,0.00779657]
[1733240910292,0.20891,95735.0,95734.0,0.11250916]
[1733240910733,0.001,95738.0,95734.0,0.11250916]
[1733240910734,0.209904,95738.0,95734.0,0.11250916]
[1733240910964,0.209904,95738.0,95735.0,0.00779657]
[1733240911203,0.0027256,95738.0,95736.0,0.13550916]
[1733240911450,0.0017256,95738.0,95737.0,0.00779657]
[1733240911676,0.0017256,95738.0,95737.0,0.13550916]
[1733240912169,0.0017256,95738.0,95737.0,0.60969427]
[1733240912394,0.0027256,95738.0,95737.0,0.54700427]
[1733240912640,0.0017256,95738.0,95737.0,0.54700427]
[1733240912884,0.0027256,95738.0,95737.0,0.59550427]
[1733240913111,0.0027256,95738.0,95737.0,0.59350427]
[1733240913799,0.0027256,95738.0,95737.0,0.39350427]
[1733240914049,0.06850489,95781.0,95755.0,0.104]
[1733240914272,0.208846,95765.0,95763.0,0.023]
[1733240914483,0.208846,95765.0,95764.0,0.11250916]
[1733240914696,0.27735089,95765.0,95764.0,0.11250916]
[1733240915585,0.27735089,95765.0,95764.0,0.11750916]
[1733240915804,0.27735089,95765.0,95764.0,0.11740916]
[1733240916914,0.27735089,95765.0,95764.0,0.12040916]
[1733240917353,0.208846,95765.0,95764.0,0.11740916]
[1733240917844,0.18274411,95765.0,95764.0,0.11240916]
[1733240918063,0.18374411,95765.0,95764.0,0.11240916]
[1733240918500,0.001,95765.0,95764.0,0.11240916]
[1733240919624,0.208831,95771.0,95764.0,0.11238997]
[1733240919838,0.20884,95767.0,95765.0,0.00777738]
[1733240920081,0.20884,95767.0,95766.0,0.11248997]
[1733240920549,0.208833,95770.0,95766.0,0.11248997]
[1733240920775,0.208833,95770.0,95767.0,0.00777738]
[1733240921004,0.417667,95770.0,95768.0,0.11248997]
[1733240921224,0.417667,95770.0,95769.0,0.00777738]
[1733240921448,0.208833,95770.0,95769.0,0.11248997]
[1733240922113,0.209833,95770.0,95769.0,0.11248997]
[1733240922328,0.208818,95778.0,95769.0,0.13548997]
[1733240922565,0.20899386,95778.0,95771.0,0.023]
[1733240922799,0.00017586,95778.0,95772.0,0.11248997]
[1733240923019,0.00017586,95778.0,95773.0,0.00777738]
[1733240923232,0.00017586,95778.0,95772.0,0.10471259]
[1733240923233,0.00017586,95778.0,95774.0,0.11248997]
[1733240923458,0.00017586,95778.0,95775.0,0.23959938]
[1733240923691,0.00017586,95778.0,95777.0,0.023]
[1733240923926,0.00017586,95778.0,95777.0,0.13548997]
[1733240924861,0.00017586,95778.0,95777.0,0.11248997]
[1733240925115,0.00017586,95778.0,95777.0,0.10748997]
[1733240925116,0.00217586,95778.0,95777.0,0.10748997]
[1733240927821,0.00217586,95778.0,95777.0,0.01]
[1733240927822,0.07068075,95778.0,95777.0,0.01]
[1733240928825,0.06968075,95778.0,95777.0,0.004]
[1733240929296,0.06968075,95778.0,95777.0,0.001]
[1733240929297,0.07568075,95778.0,95777.0,0.001]
[1733240930199,0.208864,95757.0,95743.0,0.208892]
[1733240930411,0.208864,95757.0,95749.0,0.023]
[1733240930627,0.208864,95757.0,95750.0,0.10471259]
[1733240930851,0.208864,95757.0,95751.0,0.023]
[1733240931071,0.06850489,95762.0,95752.0,0.10471259]
[1733240931529,0.208867,95755.0,95752.0,0.10471259]
[1733240932009,0.417734,95755.0,95752.0,0.10471259]
[1733240932709,0.06850489,95753.0,95752.0,0.10471259]
[1733240933619,0.06850489,95754.0,95752.0,0.10471259]
[1733240933862,0.27737489,95753.0,95752.0,0.11771259]
[1733240934075,0.27737489,95753.0,95752.0,0.004]
[1733240934313,0.208907,95737.0,95729.0,0.10794311]
[1733240934573,0.2089,95740.0,95731.0,0.208918]
[1733240934771,0.2089,95740.0,95732.0,0.10471259]
[1733240935204,0.2089,95740.0,95732.0,0.09971259]
[1733240935420,0.208885,95747.0,95733.0,0.4823667]
[1733240935687,0.001,95753.0,95741.0,0.06269]
[1733240935901,0.208866,95755.0,95743.0,0.08569]
[1733240936116,0.208858,95759.0,95748.0,0.20888]
[1733240936333,0.208858,95759.0,95749.0,0.10656096]
[1733240936551,0.417694,95764.0,95751.0,0.023]
[1733240936774,0.06850489,95773.0,95755.0,0.06269]
[1733240937023,0.06850489,95773.0,95756.0,0.19040259]
[1733240937280,0.001,95759.0,95756.0,0.19040259]
[1733240937508,0.001,95759.0,95758.0,0.19040259]
[1733240937726,0.0008623,95778.0,95761.0,0.023]
[1733240937727,0.208818,95777.0,95761.0,0.023]
[1733240937948,0.208818,95777.0,95767.0,0.08569]
[1733240938171,0.0008623,95778.0,95767.0,0.08569]
[1733240938172,0.0008623,95778.0,95769.0,0.023]
[1733240938421,0.208818,95777.0,95770.0,0.10471259]
[1733240938877,0.0008623,95778.0,95771.0,0.21067899]
[1733240939106,0.208818,95777.0,95772.0,0.10471259]
[1733240939324,0.001,95773.0,95772.0,0.10471259]
[1733240939798,0.20985616,95778.0,95772.0,0.10471259]
[1733240940031,0.00103816,95778.0,95772.0,0.10471259]
[1733240940277,0.00103816,95778.0,95772.0,0.31354059]
[1733240940503,0.00103816,95778.0,95777.0,0.12771259]
[1733240940757,0.00103816,95778.0,95777.0,0.57144517]
[1733240941025,0.00103816,95778.0,95777.0,0.7195977]
[1733240941268,0.00103816,95778.0,95777.0,0.7894977]
[1733240941515,0.208723,95821.0,95807.0,0.06269]
[1733240941729,0.20889929,95821.0,95808.0,0.33830977]
[1733240941971,0.00017629,95821.0,95813.0,0.208739]
[1733240942192,0.00017629,95821.0,95814.0,0.19040259]
[1733240942411,0.00017629,95821.0,95816.0,0.023]
[1733240942642,0.00017629,95821.0,95818.0,0.33644159]
[1733240942873,0.00017629,95821.0,95820.0,0.023]
[1733240943127,0.00017629,95821.0,95820.0,0.55067843]
[1733240943408,0.00017629,95821.0,95820.0,0.5488317]
[1733240943634,0.00017629,95821.0,95820.0,0.6115217]
[1733240943855,0.00017629,95821.0,95820.0,0.8115217]
[1733240944090,0.00117629,95821.0,95820.0,1.6114881]
[1733240944310,0.0017286,95834.0,95833.0,0.231696]
[1733240944527,0.0017286,95834.0,95833.0,0.33640859]
[1733240944850,0.0017286,95834.0,95833.0,0.5141037]
[1733240945088,0.0017286,95834.0,95833.0,1.2767937]
[1733240945307,0.0017286,95834.0,95833.0,1.3583937]
[1733240945523,0.0008629,95863.0,95839.0,0.15449511]
[1733240945761,0.0008629,95863.0,95839.0,0.46105394]
[1733240945983,0.0008629,95863.0,95839.0,0.8805807]
[1733240946223,0.0008629,95863.0,95860.0,0.13149511]
[1733240946477,0.0008629,95863.0,95860.0,0.2592077]
[1733240946942,0.0008629,95863.0,95860.0,0.12771259]
[1733240947176,0.0008629,95863.0,95860.0,0.10471259]
[1733240947415,0.208635,95862.0,95860.0,0.10871259]
[1733240947643,0.00145065,95861.0,95860.0,0.10871259]
[1733240947861,0.07194528,95861.0,95839.0,0.706]
[1733240948104,0.06850489,95857.0,95841.0,0.7]
[1733240948316,0.208672,95844.0,95842.0,0.10471259]
[1733240949705,0.208649,95855.0,95842.0,0.10471259]
[1733240949933,0.208649,95855.0,95842.0,0.11371259]
[1733240949934,0.001,95844.0,95842.0,0.11371259]
[1733240950165,0.208674,95843.0,95842.0,0.11771259]
[1733240950629,0.176574,95843.0,95842.0,0.11771259]
[1733240951364,0.24706863,95843.0,95842.0,0.11771259]
[1733240951569,0.176574,95843.0,95842.0,0.11371259]
[1733240952273,0.208663,95849.0,95842.0,0.11371259]
[1733240952274,0.20865,95854.0,95842.0,0.10483459]
[1733240952527,0.208634,95862.0,95845.0,0.10471259]
[1733240952748,0.208634,95862.0,95846.0,0.00184639]
[1733240952959,0.208637,95860.0,95847.0,0.10655898]
[1733240953389,0.208648,95856.0,95847.0,0.10655898]
[1733240953628,0.208656,95852.0,95847.0,0.10471259]
[1733240954098,0.417312,95852.0,95847.0,0.10471259]
[1733240954554,0.208656,95852.0,95847.0,0.10471259]
[1733240954767,0.208649,95855.0,95847.0,0.10471259]
[1733240954994,0.208659,95850.0,95847.0,0.10471259]
[1733240955696,0.417318,95850.0,95847.0,0.10471259]
[1733240955903,0.417318,95850.0,95847.0,0.10571259]
[1733240956604,0.27716789,95848.0,95847.0,0.11171259]
[1733240957531,0.27716789,95848.0,95847.0,0.10571259]
[1733240957728,0.27816789,95848.0,95847.0,0.11271259]
[1733240958167,0.27816789,95848.0,95847.0,0.11171259]
[1733240958606,0.27816789,95848.0,95847.0,0.11271259]
[1733240959109,0.27816789,95848.0,95847.0,0.11171259]
[1733240959334,0.27816789,95848.0,95847.0,0.11371259]
[1733240960242,0.001,95848.0,95847.0,0.11371259]
[1733240960927,0.001,95848.0,95847.0,0.201249]
[1733240961600,0.0008629,95863.0,95860.0,0.208637]
[1733240961842,0.0008629,95863.0,95860.0,0.39903959]
[1733240962329,0.0008629,95863.0,95860.0,0.491315]
[1733240962549,0.0008629,95863.0,95860.0,0.4678447]
[1733240962775,0.0108229,95874.0,95873.0,0.231609]
[1733240963023,0.0108229,95874.0,95873.0,0.33632159]
[1733240963258,0.06850489,95913.0,95874.0,0.13149511]
[1733240963471,0.06850489,95913.0,95895.0,0.10471259]
[1733240963711,0.068681,95913.0,95895.0,0.10471259]
[1733240964002,0.068681,95913.0,95897.0,0.208557]
[1733240964209,0.00017611,95913.0,95899.0,0.208552]
[1733240964445,0.00017611,95913.0,95896.0,0.208559]
[1733240964446,0.00017611,95913.0,95900.0,0.10471259]
[1733240964666,0.00017611,95913.0,95900.0,0.31326059]
[1733240964895,0.00017611,95913.0,95901.0,0.00184539]
[1733240965112,0.00017611,95913.0,95902.0,0.10471259]
[1733240966438,0.00017611,95913.0,95902.0,0.11671259]
[1733240967133,0.00017611,95913.0,95909.0,0.208529]
[1733240967345,0.00017611,95913.0,95910.0,0.10471259]
[1733240968203,0.00017611,95913.0,95911.0,0.208526]
[1733240968431,0.00017611,95913.0,95912.0,0.10471259]
[1733240969557,0.00017611,95913.0,95912.0,0.11371259]
[1733240970926,0.00017611,95913.0,95912.0,0.11671259]
[1733240971359,0.00103781,95913.0,95912.0,0.11671259]
[1733240973114,0.07153244,95913.0,95912.0,0.11671259]
[1733240973583,0.07153244,95913.0,95912.0,0.012]
[1733240973584,0.30193244,95913.0,95912.0,0.012]
[1733240973818,0.3472427,95913.0,95912.0,0.012]
[1733240974318,0.3472427,95913.0,95912.0,0.009]
[1733240974520,0.3472427,95913.0,95912.0,0.011]
[1733240974936,0.3472427,95913.0,95912.0,0.009]
[1733240975141,0.3472427,95913.0,95868.0,0.208618]
[1733240975142,0.208585,95884.0,95868.0,0.208618]
[1733240975359,0.208585,95884.0,95869.0,0.10471259]
[1733240975581,0.41717,95884.0,95869.0,0.10471259]
[1733240975795,0.06850489,95887.0,95869.0,0.10471259]
[1733240976265,0.208595,95880.0,95869.0,0.10471259]
[1733240976467,0.15,95889.0,95869.0,0.10488877]
[1733240976468,0.208607,95874.0,95869.0,0.10488877]
[1733240976686,0.06850489,95887.0,95869.0,0.10988877]
[1733240976930,0.06850489,95884.0,95869.0,0.10988877]
[1733240977141,0.15,95887.0,95870.0,0.21046102]
[1733240977351,0.15,95887.0,95871.0,0.10471259]
[1733240977352,0.06850489,95884.0,95871.0,0.10471259]
[1733240977805,0.208587,95883.0,95871.0,0.10471259]
[1733240978282,0.06850489,95884.0,95872.0,0.208611]
[1733240978490,0.208581,95886.0,95873.0,0.10471259]
[1733240978703,0.208557,95897.0,95869.0,0.00817618]
[1733240978704,0.0481617,95913.0,95879.0,0.10471259]
[1733240978913,0.06850489,95899.0,95882.0,0.023]
[1733240979125,0.06850489,95899.0,95883.0,0.31329959]
[1733240979126,0.208554,95898.0,95883.0,0.31329959]
[1733240979343,0.208546,95902.0,95883.0,0.10471259]
[1733240979592,0.208554,95898.0,95883.0,0.10471259]
[1733240979835,0.20854,95905.0,95888.0,0.023]
[1733240980048,0.00198974,95905.0,95889.0,0.10471259]
[1733240980275,0.15,95903.0,95889.0,0.10471259]
[1733240980507,0.208554,95899.0,95889.0,0.10471259]
[1733240980721,0.27707389,95892.0,95889.0,0.10471259]
[1733240981010,0.208587,95883.0,95863.0,0.41726]
[1733240981246,0.06850489,95892.0,95874.0,0.10471259]
[1733240981463,0.208594,95880.0,95874.0,0.10471259]
[1733240981676,0.00198974,95891.0,95874.0,0.10471259]
[1733240981677,0.208591,95881.0,95874.0,0.10471259]
[1733240981900,0.06850489,95884.0,95874.0,0.10471259]
[1733240981901,0.208603,95876.0,95874.0,0.10471259]
[1733240982368,0.417174,95883.0,95874.0,0.10471259]
[1733240982587,0.208601,95877.0,95874.0,0.10871259]
[1733240982802,0.15,95876.0,95874.0,0.11771259]
[1733240983003,0.15,95876.0,95874.0,0.10871259]
[1733240983215,0.208604,95875.0,95874.0,0.10871259]
[1733240983456,0.208604,95875.0,95874.0,0.11771259]
[1733240983922,0.208604,95875.0,95874.0,0.11943539]
[1733240984392,0.208604,95875.0,95874.0,0.0107228]
[1733240984393,0.42909863,95875.0,95874.0,0.0107228]
[1733240984630,0.42710889,95875.0,95874.0,0.0067228]
[1733240984833,0.27710889,95875.0,95874.0,0.0157228]
[1733240985045,0.208604,95875.0,95874.0,0.0067228]
[1733240985249,0.208604,95875.0,95874.0,0.0017228]
[1733240985465,0.208604,95875.0,95874.0,0.0137228]
[1733240985671,0.208604,95875.0,95874.0,0.0047228]
[1733240987219,0.43210889,95875.0,95874.0,0.0017228]
[1733240987848,0.43210889,95875.0,95874.0,0.0047228]
[1733240988269,0.42710889,95875.0,95874.0,0.0017228]
[1733240988535,0.42810889,95875.0,95874.0,0.0027228]
[1733240988738,0.42810889,95875.0,95874.0,0.0017228]
[1733240988963,0.42710889,95875.0,95874.0,0.0017228]
[1733240989171,0.42710889,95875.0,95874.0,0.0027228]
[1733240989390,0.42810889,95875.0,95874.0,0.0027228]
[1733240990092,0.359604,95875.0,95874.0,0.0027228]
[1733240990300,0.42810889,95875.0,95874.0,0.0027228]
[1733240991825,0.001,95875.0,95874.0,0.10743539]
[1733240992655,0.001,95875.0,95874.0,0.13043539]
[1733240993082,0.209604,95875.0,95874.0,0.26960969]
[1733240993282,0.209604,95875.0,95874.0,0.13043539]
[1733240994186,0.209604,95875.0,95874.0,0.12943539]
[1733240994651,0.001,95875.0,95874.0,0.12943539]
[1733240994896,0.27709989,95880.0,95874.0,0.10743539]
[1733240995185,0.42710889,95875.0,95874.0,0.0027228]
[1733240995386,0.42810889,95875.0,95874.0,0.0027228]
[1733240995834,0.47400889,95875.0,95874.0,0.0027228]
[1733240996265,0.47487029,95875.0,95874.0,0.0027228]
[1733240996955,0.55167029,95875.0,95874.0,0.0027228]
[1733240997644,0.95167029,95875.0,95874.0,0.0027228]
[1733240997857,0.95167029,95875.0,95869.0,1.8e-07]
[1733240997858,0.90901989,95870.0,95869.0,1.8e-07]
[1733240998307,0.640515,95870.0,95869.0,1.8e-07]
[1733240998543,0.50901989,95870.0,95869.0,1.8e-07]
[1733240999233,0.51301989,95870.0,95869.0,1.8e-07]
[1733240999663,0.51401989,95870.0,95869.0,0.00100018]
[1733241003295,0.71401989,95870.0,95869.0,0.00100018]
[1733241003506,0.51401989,95870.0,95869.0,0.00100018]
[1733241004197,0.43211989,95870.0,95869.0,0.00100018]
[1733241004419,0.43211989,95870.0,95869.0,0.10571277]
[1733241004420,0.005,95870.0,95869.0,0.10571277]
[1733241004639,0.005,95870.0,95869.0,0.12871277]
[1733241004878,0.0008614,95875.0,95870.0,0.023]
[1733241005115,0.0008614,95875.0,95871.0,0.10471259]
[1733241005362,0.0008614,95875.0,95874.0,0.12771259]
[1733241005586,0.0008614,95875.0,95874.0,0.12955836]
[1733241005803,0.0008614,95875.0,95874.0,0.12771259]
[1733241006255,0.0008614,95875.0,95874.0,0.33816547]
[1733241006467,0.0018614,95875.0,95874.0,0.33631959]
[1733241006715,0.0018614,95875.0,95874.0,0.12771259]
[1733241007782,0.0008614,95875.0,95874.0,0.12771259]
[1733241008010,0.0008614,95875.0,95874.0,0.12943539]
[1733241008262,0.208583,95885.0,95875.0,0.023]
[1733241008506,0.06850489,95886.0,95876.0,0.10471259]
[1733241008752,0.417189,95880.0,95877.0,0.023]
[1733241008998,0.417189,95880.0,95878.0,0.10471259]
[1733241009336,0.417189,95880.0,95879.0,0.023]
[1733241009564,0.417189,95880.0,95879.0,0.12771259]
[1733241009991,0.06850489,95877.0,95876.0,0.001]
[1733241010196,0.07049463,95877.0,95876.0,0.10571259]
[1733241010751,0.06850489,95877.0,95876.0,0.10571259]
[1733241011224,0.06850489,95877.0,95876.0,0.10471259]
[1733241012100,0.06850489,95877.0,95876.0,0.10571259]
[1733241012842,0.21850489,95877.0,95876.0,0.10571259]
[1733241013067,0.208579,95887.0,95877.0,0.023]
[1733241013297,0.208596,95879.0,95878.0,0.10471259]
[1733241013545,0.27710089,95879.0,95878.0,0.10471259]
[1733241013786,0.06850489,95877.0,95876.0,0.001]
[1733241014000,0.208583,95885.0,95877.0,0.023]
[1733241014241,0.208586,95884.0,95879.0,0.023]
[1733241014478,0.15,95881.0,95880.0,0.12771259]
[1733241014953,0.358591,95881.0,95880.0,0.12771259]
[1733241015713,0.358591,95881.0,95880.0,0.10471259]
[1733241016136,0.359591,95881.0,95880.0,0.10471259]
[1733241018724,0.001,95881.0,95880.0,0.12771259]
[1733241018968,0.001,95881.0,95880.0,0.88152485]
[1733241019183,0.001,95885.0,95883.0,0.08569]
[1733241019435,0.001,95885.0,95884.0,0.12771259]
[1733241019650,0.001,95885.0,95884.0,0.12955807]
[1733241019873,0.06850489,95900.0,95884.0,0.12771259]
[1733241020090,0.00198974,95901.0,95884.0,0.12771259]
[1733241020091,0.06850489,95888.0,95885.0,0.13944028]
[1733241020332,0.208566,95893.0,95890.0,0.023]
[1733241020548,0.15,95892.0,95891.0,0.10471259]
[1733241022212,0.15,95892.0,95891.0,0.10671259]
[1733241022423,0.21850489,95892.0,95891.0,0.10471259]
[1733241022635,0.21850489,95892.0,95891.0,0.10571259]
[1733241022845,0.21850489,95892.0,95891.0,0.10971259]
[1733241023571,0.15,95896.0,95891.0,0.10971259]
[1733241023785,0.15,95898.0,95891.0,0.10971259]
[1733241024024,0.15,95902.0,95892.0,0.023]
[1733241024239,0.15,95902.0,95894.0,0.023]
[1733241024459,0.15,95902.0,95896.0,0.023]
[1733241024694,0.15,95902.0,95898.0,0.023]
[1733241024920,0.06850489,95909.0,95900.0,0.023]
[1733241025156,0.2093857,95913.0,95902.0,0.023]
[1733241025399,0.0008617,95913.0,95905.0,0.023]
[1733241025631,0.208524,95912.0,95906.0,0.10471259]
[1733241025940,0.417053,95911.0,95907.0,0.023]
[1733241026200,0.417053,95911.0,95896.0,0.1396478]
[1733241026201,0.417053,95911.0,95909.0,0.023]
[1733241026433,0.208539,95905.0,95896.0,0.1396478]
[1733241026672,0.208539,95905.0,95893.0,0.23373354]
[1733241026673,0.06850489,95898.0,95897.0,0.10471259]
[1733241027123,0.00198974,95898.0,95897.0,0.10471259]
[1733241027354,0.0769,95909.0,95897.0,0.10471259]
[1733241027355,0.208538,95906.0,95897.0,0.10471259]
[1733241027570,0.208544,95903.0,95900.0,0.001]
[1733241027799,0.208544,95903.0,95901.0,0.10471259]
[1733241027800,0.15,95902.0,95901.0,0.10471259]
[1733241028021,0.15,95902.0,95901.0,0.10191259]
[1733241028249,0.06850489,95898.0,95891.0,0.023]
[1733241028518,0.20856,95896.0,95892.0,0.10471259]
[1733241028764,0.208563,95894.0,95892.0,0.10471259]
[1733241029472,0.15,95895.0,95892.0,0.10471259]
[1733241029682,0.208563,95894.0,95892.0,0.10471259]
[1733241030411,0.208563,95894.0,95882.0,0.0009941]
[1733241030412,0.42709189,95883.0,95882.0,0.0009941]
[1733241030894,0.15,95883.0,95882.0,0.10471259]
[1733241031545,0.208573,95890.0,95882.0,0.10471259]
[1733241031753,0.15,95889.0,95883.0,0.12771259]
[1733241032675,0.15,95889.0,95880.0,0.208593]
[1733241032676,0.00017608,95891.0,95889.0,0.023]
[1733241032902,0.00017608,95891.0,95890.0,0.12771259]
[1733241033152,0.00017608,95891.0,95890.0,0.10471259]
[1733241033385,0.00017608,95891.0,95890.0,0.12771259]
[1733241033606,0.00017608,95891.0,95890.0,0.12955815]
[1733241034093,0.00017608,95891.0,95890.0,0.54025326]
[1733241034335,0.0008614,95894.0,95891.0,0.64014]
[1733241034578,0.0008614,95894.0,95893.0,0.49904375]
[1733241034821,0.0008614,95894.0,95893.0,0.52204375]
[1733241035068,0.208509,95919.0,95902.0,0.023]
[1733241035275,0.208519,95915.0,95904.0,0.023]
[1733241035531,0.15,95918.0,95912.0,0.10471259]
[1733241035741,0.15,95922.0,95912.0,0.12771259]
[1733241036722,0.208518,95915.0,95912.0,0.10471259]
[1733241037667,0.417036,95915.0,95912.0,0.11171259]
[1733241037931,0.06936659,95913.0,95912.0,0.009]
[1733241038142,0.29655633,95913.0,95912.0,0.009]
[1733241038372,0.29456659,95913.0,95912.0,0.009]
[1733241038609,0.29456659,95913.0,95912.0,0.007]
[1733241038860,0.06850489,95908.0,95884.0,0.14206555]
[1733241039098,0.208554,95899.0,95891.0,0.10471259]
[1733241039361,0.208567,95892.0,95891.0,0.10471259]
[1733241040242,0.358567,95892.0,95891.0,0.10471259]
[1733241040727,0.42707189,95892.0,95891.0,0.10971259]
[1733241041344,0.42707189,95892.0,95891.0,0.11071259]
[1733241042017,0.42707189,95892.0,95891.0,0.006]
[1733241042475,0.358567,95892.0,95891.0,0.11071259]
[1733241042723,0.42707189,95892.0,95891.0,0.11071259]
[1733241043158,0.42707189,95892.0,95891.0,0.10071259]
[1733241043403,0.42807189,95892.0,95891.0,0.10071259]
[1733241043871,0.42807189,95892.0,95884.0,0.00017608]
[1733241043872,0.27708789,95885.0,95884.0,0.00017608]
[1733241044121,0.42708789,95885.0,95884.0,0.00017608]
[1733241045025,0.42708789,95885.0,95884.0,0.00217608]
[1733241047157,0.358583,95885.0,95884.0,0.00217608]
[1733241047375,0.42708789,95885.0,95884.0,0.00217608]
[1733241049738,0.43140872,95885.0,95884.0,0.00217608]
[1733241050465,0.43140872,95885.0,95884.0,0.00017608]
[1733241050689,0.44040872,95885.0,95884.0,0.00017608]
[1733241051180,0.43740872,95885.0,95884.0,0.00017608]
[1733241051433,0.44040872,95885.0,95884.0,0.00017608]
[1733241051679,0.75601264,95885.0,95884.0,0.00017608]
[1733241052374,0.2831,95888.0,95884.0,0.00017608]
[1733241052626,0.21416138,95885.0,95884.0,0.00017608]
[1733241052869,0.21057274,95885.0,95884.0,0.00017608]
[1733241053126,0.21613357,95885.0,95884.0,0.00017608]
[1733241053376,0.41613357,95885.0,95884.0,0.00017608]
[1733241053609,0.41414383,95885.0,95884.0,0.00017608]
[1733241054503,0.56714383,95885.0,95884.0,0.00017608]
[1733241054728,0.56714383,95885.0,95884.0,7.608e-05]
[1733241055435,0.80375642,95885.0,95884.0,8e-08]
[1733241056101,0.80075642,95885.0,95884.0,8e-08]
[1733241056323,0.4328,95884.0,95883.0,4.8e-07]
[1733241056592,0.4328,95884.0,95875.0,0.0017228]
[1733241056593,0.641402,95876.0,95875.0,0.0017228]
[1733241056808,0.641402,95876.0,95875.0,0.0016228]
[1733241057057,0.44693867,95876.0,95875.0,0.0016228]
[1733241057282,0.44968442,95876.0,95875.0,0.0016228]
[1733241057727,0.44968442,95876.0,95875.0,0.0026228]
[1733241058194,0.44968442,95876.0,95875.0,0.0025228]
[1733241059182,0.44968442,95876.0,95875.0,0.0024228]
[1733241059640,0.64968442,95876.0,95875.0,0.0014228]
[1733241059875,0.65168442,95876.0,95875.0,0.0014228]
[1733241060089,0.65368442,95876.0,95875.0,0.0013228]
[1733241060313,0.408615,95870.0,95841.0,0.0009949]
[1733241060563,0.73882759,95870.0,95841.0,0.0009949]
[1733241060797,0.73882759,95870.0,95826.0,0.2]
[1733241060798,0.74705596,95870.0,95826.0,0.2]
[1733241061036,0.358672,95844.0,95834.0,0.0009877]
[1733241061274,0.436672,95844.0,95834.0,0.0009877]
[1733241061534,0.44488959,95844.0,95825.0,0.2]
[1733241061809,0.44488959,95844.0,95817.0,0.0459]
[1733241061810,0.00821759,95844.0,95837.0,0.2]
[1733241062065,0.00821759,95844.0,95843.0,0.30633599]
[1733241062329,0.208631,95863.0,95854.0,0.2]
[1733241062567,0.0481,95896.0,95863.0,0.2]
[1733241062808,0.0481,95896.0,95847.0,0.11149]
[1733241062809,0.208614,95871.0,95867.0,0.2]
[1733241063025,0.00998974,95870.0,95869.0,0.0009]
[1733241063241,0.008,95870.0,95869.0,0.10561259]
[1733241063479,0.208615,95871.0,95869.0,0.10471259]
[1733241063711,0.208615,95871.0,95869.0,0.001]
[1733241063712,0.01098974,95870.0,95869.0,0.001]
[1733241063963,0.208648,95855.0,95854.0,0.2]
[1733241064212,0.00198974,95855.0,95854.0,0.10471259]
[1733241064445,0.20865,95854.0,95846.0,0.13956869]
[1733241064716,0.208663,95848.0,95847.0,0.10471259]
[1733241065155,0.21695271,95848.0,95847.0,0.10471259]
[1733241065375,0.21695271,95848.0,95847.0,0.10461259]
[1733241065822,0.00828971,95848.0,95847.0,0.10461259]
[1733241066045,0.00828971,95848.0,95847.0,0.30461259]
[1733241066267,0.00198974,95858.0,95854.0,0.006]
[1733241066531,0.208646,95856.0,95854.0,0.11061259]
[1733241066765,0.00833575,95857.0,95854.0,0.11061259]
[1733241067028,0.208643,95858.0,95854.0,0.10471259]
[1733241067268,0.00833575,95856.0,95854.0,0.10461259]
[1733241067512,0.208646,95856.0,95854.0,0.10461259]
[1733241067744,0.00833726,95855.0,95854.0,0.10461259]
[1733241067983,0.00833726,95855.0,95854.0,0.10861259]
[1733241068230,0.00833726,95855.0,95854.0,0.31033819]
[1733241068448,0.00833726,95855.0,95854.0,0.31023819]
[1733241068704,0.00198974,95858.0,95854.0,0.31023819]
[1733241068937,0.208644,95857.0,95854.0,0.31023819]
[1733241069170,0.001,95856.0,95854.0,0.30923819]
[1733241069406,0.00298974,95856.0,95854.0,0.31013819]
[1733241069898,0.44827952,95855.0,95854.0,0.0047256]
[1733241070123,0.44628978,95855.0,95854.0,0.0047256]
[1733241070348,0.44528978,95855.0,95854.0,0.0057256]
[1733241070851,0.44528978,95855.0,95854.0,0.0047256]
[1733241071321,0.64528978,95855.0,95854.0,0.0047256]
[1733241072259,0.64528978,95855.0,95854.0,0.0017256]
[1733241072502,0.64528978,95855.0,95854.0,0.0037256]